bitfinex-derivatives/quotes_SOLF0:USTF0_20250528
["timestamp","ask_amount","ask_price","bid_price","bid_amount"]
[1748458463342,0.04437863,169.94,169.9,0.04489182]
[1748458464142,10.8402088,169.92,169.82,33.36]
[1748458464332,10.8402088,169.89,169.83,5.8864]
[1748458464535,10.8402088,169.89,169.78,33.36]
[1748458464536,33.36,169.88,169.78,33.36]
[1748458464732,37.3049,169.88,169.77,33.36]
[1748458465135,0.03759296,169.84,169.81,0.04253956]
[1748458466136,0.03759296,169.84,169.82,5.8868]
[1748458466336,0.03759296,169.84,169.81,0.04253956]
[1748458467444,33.36,169.83,169.81,0.04253956]
[1748458468434,5.8868,169.82,169.81,0.04253956]
[1748458468635,5.8868,169.82,169.74,2.0412]
[1748458468636,44.2002088,169.83,169.78,5.8881]
[1748458468841,33.36,169.83,169.74,2.0412]
[1748458469149,33.36,169.83,169.79,5.8878]
[1748458469646,39.28631607,169.83,169.79,5.8878]
[1748458469950,33.39981607,169.83,169.74,2.0412]
[1748458470149,39.28661607,169.83,169.74,2.0412]
[1748458470352,33.39981607,169.83,169.74,2.0412]
[1748458470946,33.39981607,169.83,169.82,5.8868]
[1748458471249,33.39981607,169.83,169.75,2.0132]
[1748458471448,33.39981607,169.83,169.81,5.8869]
[1748458471651,33.39981607,169.83,169.75,2.0132]
[1748458472249,33.39981607,169.83,169.81,5.8871]
[1748458472445,33.39981607,169.83,169.75,2.0132]
[1748458472446,0.03981607,169.83,169.76,10.8402088]
[1748458473254,0.03981607,169.83,169.76,120.34]
[1748458473555,0.03981607,169.83,169.75,2.0132]
[1748458473745,0.03981607,169.83,169.77,5.8885]
[1748458473746,5.8874,169.81,169.77,5.8885]
[1748458473947,0.03981607,169.83,169.74,2.0412]
[1748458474151,0.045016,169.8,169.74,2.0412]
[1748458474958,0.045016,169.8,169.78,5.8882]
[1748458476156,0.045016,169.8,169.79,5.8879]
[1748458476554,33.38,169.85,169.83,5.8862]
[1748458477055,33.38,169.89,169.78,33.38]
[1748458477553,0.03958306,169.85,169.82,5.92404873]
[1748458477754,0.03958306,169.85,169.82,0.03754873]
[1748458478657,0.03958306,169.85,169.83,5.8864]
[1748458478849,0.03958306,169.85,169.82,0.03754873]
[1748458480748,0.03958306,169.85,169.84,5.8861]
[1748458483561,0.03958306,169.85,169.82,0.03754873]
[1748458484060,0.03958306,169.85,169.83,5.8862]
[1748458485056,0.03958306,169.85,169.84,5.8861]
[1748458487763,0.03958306,169.85,169.82,0.03754873]
[1748458487764,4.0926,169.92,169.88,5.8846]
[1748458488063,4.0926,169.92,169.83,33.38]
[1748458488264,4.0926,169.92,169.86,5.8852]
[1748458488463,5.8846,169.89,169.83,33.38]
[1748458488861,0.04461105,169.88,169.84,0.03828709]
[1748458489364,0.04461105,169.88,169.87,5.8851]
[1748458489761,0.04461105,169.88,169.84,0.03828709]
[1748458490357,0.04461105,169.88,169.87,5.8851]
[1748458491369,33.38,169.93,169.91,5.8836]
[1748458491663,33.38,169.93,169.85,2.084]
[1748458491864,33.38,169.93,169.9,5.8838]
[1748458492169,33.38,169.93,169.85,2.084]
[1748458492362,0.04385244,169.91,169.87,0.03990839]
[1748458492561,0.04385244,169.91,169.9,5.884]
[1748458493271,0.04385244,169.91,169.89,5.8843]
[1748458493769,0.04385244,169.91,169.87,0.03990839]
[1748458494967,5.8843,169.9,169.87,0.03990839]
[1748458495362,5.92765244,169.91,169.87,0.03990839]
[1748458496067,0.04385244,169.91,169.88,5.8845]
[1748458496275,0.04385244,169.91,169.87,0.03990839]
[1748458497972,0.04385244,169.91,169.9,5.8841]
[1748458499571,0.04385244,169.91,169.87,0.03990839]
[1748458499971,0.04385244,169.91,169.9,5.8841]
[1748458500367,33.88,169.98,169.88,37.9758]
[1748458500672,33.88,169.98,169.93,5.883]
[1748458501071,5.8823,169.96,169.92,5.8834]
[1748458501280,0.04241493,169.96,169.92,0.04170697]
[1748458501671,5.883,169.93,169.92,0.04170697]
[1748458502473,0.04241493,169.96,169.92,0.04170697]
[1748458503680,5.8826,169.95,169.92,0.04170697]
[1748458503886,0.04241493,169.96,169.92,5.92510697]
[1748458504184,0.04241493,169.96,169.92,0.04170697]
[1748458506075,0.04241493,169.96,169.95,5.8823]
[1748458507775,0.04241493,169.96,169.92,0.04170697]
[1748458508683,10.88262373,169.96,169.92,0.04170697]
[1748458508886,10.8402088,169.93,169.84,33.88]
[1748458509085,33.88,169.92,169.84,33.88]
[1748458509287,33.88,169.92,169.85,5.8856]
[1748458509583,33.88,169.92,169.82,1.9517]
[1748458509779,0.04048373,169.89,169.85,0.04471075]
[1748458511893,5.8855,169.86,169.85,0.04471075]
[1748458513384,5.8865,169.83,169.8,5.8875]
[1748458513685,46.8121088,169.87,169.77,2.0107]
[1748458513985,35.9719,169.87,169.77,2.0107]
[1748458514192,33.88,169.92,169.79,10.8402088]
[1748458514393,0.0401019,169.87,169.84,0.04129444]
[1748458515785,0.0401019,169.87,169.85,5.8858]
[1748458515985,0.0401019,169.87,169.84,0.04129444]
[1748458516389,0.0401019,169.87,169.86,5.8855]
[1748458518290,1.9e-06,169.87,169.86,5.8855]
[1748458518495,33.88,169.96,169.86,33.88]
[1748458518898,5.8819,169.97,169.86,33.88]
[1748458519189,1.9183,169.98,169.92,5.8831]
[1748458519391,5.8824,169.95,169.93,0.04143455]
[1748458519799,0.04385202,169.97,169.93,0.04143455]
[1748458520400,0.04385202,169.97,169.94,5.8826]
[1748458521096,5.92555202,169.97,169.93,5.92433455]
[1748458521295,5.92555202,169.97,169.93,0.04143455]
[1748458521697,5.92555202,169.97,169.93,5.92433455]
[1748458522201,0.04385202,169.97,169.93,0.04143455]
[1748458523504,5.8824,169.95,169.93,0.04143455]
[1748458523705,0.04385202,169.97,169.93,0.04143455]
[1748458525804,0.04385202,169.97,169.94,5.8826]
[1748458526007,0.04385202,169.97,169.93,0.04143455]
[1748458526402,5.92565202,169.97,169.94,5.8827]
[1748458526709,0.04385202,169.97,169.94,5.8827]
[1748458526903,0.04385202,169.97,169.93,0.04143455]
[1748458527212,5.92555202,169.97,169.93,5.92433455]
[1748458527511,0.04385202,169.97,169.93,0.04143455]
[1748458527711,0.04385202,169.97,169.95,5.8823]
[1748458528204,0.04385202,169.97,169.96,5.882]
[1748458528806,33.5,170.03,169.96,5.882]
[1748458529010,33.5,170.03,169.93,0.04143455]
[1748458529011,33.5,170.03,169.99,5.8808]
[1748458530017,39.42154414,170.03,169.99,5.91902606]
[1748458530210,33.54184414,170.03,169.99,0.03822606]
[1748458530712,5.8799,170.02,169.99,0.03822606]
[1748458530906,33.54184414,170.03,169.99,0.03822606]
[1748458531110,33.54184414,170.03,169.99,5.91892606]
[1748458531310,39.42154414,170.03,169.99,0.03822606]
[1748458531512,33.54184414,170.03,169.99,0.03822606]
[1748458531709,5.88,170.02,169.99,0.03822606]
[1748458532116,33.54184414,170.03,169.99,0.03822606]
[1748458532415,39.42144414,170.03,169.99,5.91902606]
[1748458532608,33.54184414,170.03,169.99,0.03822606]
[1748458533005,33.54184414,170.03,170.0,5.8806]
[1748458533204,33.54184414,170.03,169.99,0.03822606]
[1748458533405,0.04184414,170.03,170.02,5.8799]
[1748458533716,0.04184414,170.03,169.99,0.03822606]
[1748458533914,0.04184414,170.03,170.01,5.8802]
[1748458534113,0.04184414,170.03,169.99,0.03822606]
[1748458535212,5.8801,170.02,169.99,5.91912606]
[1748458535620,0.04184414,170.03,169.99,0.03822606]
[1748458536223,5.8806,170.0,169.99,0.03822606]
[1748458539317,33.48,170.02,169.99,0.03822606]
[1748458540410,5.8806,170.0,169.99,0.03822606]
[1748458541815,5.8804,170.01,169.99,0.03822606]
[1748458542422,33.48,170.02,169.99,0.03822606]
[1748458542822,0.04184414,170.03,169.99,0.03822606]
[1748458543921,5.88,170.02,169.99,0.03822606]
[1748458544319,0.04184414,170.03,169.99,0.03822606]
[1748458544523,5.8803,170.01,169.99,5.91912606]
[1748458545129,5.8803,170.01,169.99,0.03822606]
[1748458545326,5.8806,170.0,169.99,0.03822606]
[1748458546424,9.69186704,170.03,169.93,33.48]
[1748458546626,1.9985,170.02,169.93,33.48]
[1748458546928,33.48,170.01,169.93,39.3627]
[1748458547125,33.48,170.01,169.93,33.48]
[1748458547528,0.0425468,169.99,169.95,0.03798867]
[1748458549029,5.8813,169.98,169.96,5.8818]
[1748458550130,5.9236468,169.99,169.96,5.8818]
[1748458550732,5.9236468,169.99,169.97,5.8816]
[1748458550925,5.9236468,169.99,169.95,0.03798867]
[1748458551121,5.9236468,169.99,169.96,5.8818]
[1748458551626,0.0425468,169.99,169.98,5.8813]
[1748458552821,0.0425468,169.99,169.95,0.03798867]
[1748458553026,5.8819,169.97,169.95,0.03798867]
[1748458553831,5.882,169.96,169.95,0.03798867]
[1748458554031,0.0425468,169.99,169.95,0.03798867]
[1748458554229,5.8816,169.98,169.95,0.03798867]
[1748458554431,0.0425468,169.99,169.95,0.03798867]
[1748458554833,5.8815,169.98,169.95,0.03798867]
[1748458555531,5.8815,169.98,169.95,5.92028867]
[1748458556031,0.0425468,169.99,169.95,0.03798867]
[1748458556734,0.0425468,169.99,169.96,5.8818]
[1748458556931,0.0425468,169.99,169.95,0.03798867]
[1748458557727,0.0425468,169.99,169.95,5.92008867]
[1748458557931,0.0425468,169.99,169.95,0.03798867]
[1748458558328,5.9236468,169.99,169.96,5.8819]
[1748458558730,0.0425468,169.99,169.95,0.03798867]
[1748458560134,5.8816,169.98,169.95,0.03798867]
[1748458560835,5.8816,169.98,169.95,5.92018867]
[1748458561332,5.9236468,169.99,169.95,5.92018867]
[1748458561535,0.0425468,169.99,169.95,0.03798867]
[1748458561931,5.9237468,169.99,169.96,5.8819]
[1748458562136,5.9237468,169.99,169.95,0.03798867]
[1748458562636,5.9237468,169.99,169.95,5.92018867]
[1748458562825,5.9237468,169.99,169.95,0.03798867]
[1748458562826,5.8813,169.98,169.95,0.03798867]
[1748458563232,5.882,169.97,169.95,0.03798867]
[1748458563431,0.0425468,169.99,169.95,0.03798867]
[1748458563936,9.6925697,169.99,169.91,5.8836]
[1748458564138,2.0855,169.98,169.91,5.8836]
[1748458564343,32.78,169.97,169.89,32.78]
[1748458564831,0.03930335,169.95,169.91,0.04053665]
[1748458565838,0.03930335,169.95,169.93,5.8828]
[1748458566043,0.03930335,169.95,169.91,0.04053665]
[1748458567936,0.03930335,169.95,169.94,5.8827]
[1748458568137,0.03930335,169.95,169.91,0.04053665]
[1748458568640,5.883,169.94,169.91,0.04053665]
[1748458568941,0.03930335,169.95,169.91,0.04053665]
[1748458569136,5.8827,169.94,169.91,5.92403665]
[1748458569338,0.03930335,169.95,169.91,0.04053665]
[1748458569542,2.0148,169.94,169.91,0.04053665]
[1748458569742,5.8834,169.92,169.91,0.04053665]
[1748458570137,5.8839,169.91,169.87,5.8849]
[1748458570844,5.8843,169.9,169.85,32.78]
[1748458571145,0.04263222,169.89,169.86,0.04353433]
[1748458571441,5.92733222,169.89,169.86,0.04353433]
[1748458572744,5.92733222,169.89,169.86,5.92873433]
[1748458573246,0.04263222,169.89,169.86,0.04353433]
[1748458573546,0.04263222,169.89,169.88,5.8848]
[1748458574546,0.04263222,169.89,169.87,5.8851]
[1748458576640,0.04263222,169.89,169.86,5.92893433]
[1748458576841,0.04263222,169.89,169.86,0.04353433]
[1748458578947,0.04263222,169.89,169.88,5.8848]
[1748458581948,0.04263222,169.89,169.87,5.885]
[1748458582346,0.04263222,169.89,169.86,0.04353433]
[1748458582547,0.04263222,169.89,169.88,5.8848]
[1748458583450,0.04263222,169.89,169.86,5.92883433]
[1748458583651,0.04263222,169.89,169.86,0.04353433]
[1748458584048,5.8851,169.87,169.86,0.04353433]
[1748458585348,5.8849,169.88,169.86,0.04353433]
[1748458585650,32.28263222,169.89,169.86,5.92873433]
[1748458585851,5.8848,169.88,169.86,0.04353433]
[1748458587947,38.16713222,169.89,169.86,5.92893433]
[1748458588155,32.28263222,169.89,169.86,5.92893433]
[1748458588350,5.8848,169.88,169.86,0.04353433]
[1748458588550,0.04263222,169.89,169.86,0.04353433]
[1748458588955,0.04263222,169.89,169.87,5.8848]
[1748458589751,0.04263222,169.89,169.86,0.04353433]
[1748458590057,5.92723222,169.89,169.86,0.04353433]
[1748458590247,0.04263222,169.89,169.86,0.04353433]
[1748458590750,0.04263222,169.89,169.86,5.92883433]
[1748458591156,0.04263222,169.89,169.86,0.04353433]
[1748458591352,5.8848,169.88,169.86,0.04353433]
[1748458591754,5.92723222,169.89,169.86,0.04353433]
[1748458592054,5.92723222,169.89,169.86,5.92903433]
[1748458593853,0.04263222,169.89,169.87,5.8851]
[1748458594251,0.04263222,169.89,169.86,0.04353433]
[1748458594552,0.04263222,169.89,169.88,5.8848]
[1748458598362,0.04263222,169.89,169.87,5.8851]
[1748458598656,0.04263222,169.89,169.86,0.04353433]
[1748458598858,5.92733222,169.89,169.86,0.04353433]
[1748458599061,0.04263222,169.89,169.86,0.04353433]
[1748458599658,32.24,169.96,169.86,0.04353433]
[1748458599966,32.24,169.96,169.84,11.6315229]
[1748458600152,5.8831,169.93,169.84,11.6315229]
[1748458600757,5.8831,169.93,169.9,5.884]
[1748458600959,5.92370384,169.93,169.9,5.884]
[1748458601256,0.04060384,169.93,169.87,0.04123215]
[1748458601456,0.04060384,169.93,169.87,41.93125505]
[1748458601661,0.04060384,169.93,169.88,1.8973]
[1748458601854,0.04060384,169.93,169.92,5.8834]
[1748458602059,0.04060384,169.93,169.88,1.8973]
[1748458602060,32.24,170.0,169.91,32.27851707]
[1748458602572,5.8813,169.99,169.91,32.27851707]
[1748458602760,32.24,170.0,169.91,32.27851707]
[1748458602963,0.04481922,169.97,169.91,32.27851707]
[1748458603162,0.04481922,169.97,169.93,5.8829]
[1748458603560,0.04481922,169.97,169.91,32.27851707]
[1748458603868,5.92671922,169.97,169.93,5.8828]
[1748458604066,5.92671922,169.97,169.91,32.27851707]
[1748458604757,0.04481922,169.97,169.91,32.27851707]
[1748458606667,5.92671922,169.97,169.93,5.8829]
[1748458607868,5.92671922,169.97,169.94,5.8826]
[1748458608064,0.04481922,169.97,169.91,32.27851707]
[1748458608470,0.04481922,169.97,169.94,5.8824]
[1748458608870,5.92661922,169.97,169.94,5.8824]
[1748458609370,0.04481922,169.97,169.94,5.8824]
[1748458609965,0.04481922,169.97,169.95,5.8823]
[1748458610165,0.04481922,169.97,169.91,32.27851707]
[1748458610362,0.04481922,169.97,169.96,5.882]
[1748458613671,31.8,170.05,170.0,5.8805]
[1748458613974,31.8,170.05,169.96,1.8973]
[1748458614467,31.8,170.05,169.97,9.6500229]
[1748458614673,0.04416075,170.03,169.99,0.04179428]
[1748458614864,0.04416075,170.03,170.02,5.8797]
[1748458615574,0.04416075,170.03,170.0,5.8803]
[1748458617270,0.04416075,170.03,170.01,5.8802]
[1748458617870,0.04416075,170.03,170.02,5.8799]
[1748458622383,15.57418365,170.03,169.91,31.8]
[1748458622684,31.8,170.04,169.92,31.8]
[1748458622885,31.8,170.04,169.97,5.8817]
[1748458623184,5.8803,170.02,169.97,31.8]
[1748458623378,31.8,170.04,169.97,31.8]
[1748458623379,0.04000393,170.01,169.98,0.03901325]
[1748458624089,0.04000393,170.01,169.99,5.8808]
[1748458624386,0.04000393,170.01,169.98,0.03901325]
[1748458624587,0.04000393,170.01,169.98,5.92011325]
[1748458625485,0.04000393,170.01,169.99,5.881]
[1748458626685,5.92030393,170.01,169.98,5.92021325]
[1748458626985,0.04000393,170.01,169.98,0.03901325]
[1748458628286,0.04000393,170.01,169.99,5.8807]
[1748458629191,0.04000393,170.01,170.0,5.8806]
[1748458630391,0.04000393,170.01,169.98,0.03901325]
[1748458631693,5.8809,170.0,169.98,0.03901325]
[1748458632291,5.92040393,170.01,169.98,5.92011325]
[1748458633187,5.881,169.99,169.98,0.03901325]
[1748458633791,15.5308229,170.0,169.98,0.03901325]
[1748458634289,15.5308229,170.0,169.98,5.92031325]
[1748458634988,9.6500229,170.0,169.98,5.92031325]
[1748458635184,9.6500229,170.0,169.93,3.8725]
[1748458635390,9.6500229,169.98,169.93,33.7628]
[1748458635795,4.0305,170.03,169.93,33.7628]
[1748458636093,9.6500229,170.01,169.93,33.7628]
[1748458636301,0.04054259,169.99,169.95,5.92560021]
[1748458636795,5.8813,169.98,169.95,5.92560021]
[1748458638094,5.92164259,169.99,169.96,5.882]
[1748458638990,5.8813,169.98,169.96,5.882]
[1748458639298,5.8813,169.98,169.95,5.92580021]
[1748458639597,0.04054259,169.99,169.95,0.04350021]
[1748458639598,5.8817,169.97,169.95,0.04350021]
[1748458640098,5.8819,169.97,169.95,0.04350021]
[1748458640393,5.8819,169.97,169.95,5.92590021]
[1748458640599,5.8819,169.97,169.95,0.04350021]
[1748458641104,5.8815,169.98,169.95,0.04350021]
[1748458641495,0.04054259,169.99,169.95,0.04350021]
[1748458641797,0.04054259,169.99,169.98,5.8813]
[1748458648098,4.259e-05,169.99,169.98,5.8813]
[1748458661915,5.8817,169.97,169.95,0.04350021]
[1748458662111,4.259e-05,169.99,169.95,0.04350021]
[1748458662817,5.88114259,169.99,169.96,5.8819]
[1748458663114,5.88114259,169.99,169.95,0.04350021]
[1748458663115,9.65006549,169.99,169.95,0.04350021]
[1748458663416,5.8819,169.97,169.95,0.04350021]
[1748458664211,5.8814,169.98,169.95,5.92580021]
[1748458665923,15.53136549,169.99,169.95,0.04350021]
[1748458666521,5.8814,169.98,169.96,5.8818]
[1748458668121,15.53116549,169.99,169.96,5.8818]
[1748458668925,15.53116549,169.99,169.95,0.04350021]
[1748458668926,9.65006549,169.99,169.95,0.04350021]
[1748458669322,5.8819,169.97,169.95,0.04350021]
[1748458669524,9.65006549,169.99,169.95,5.92580021]
[1748458670028,5.8815,169.98,169.95,5.92580021]
[1748458670728,5.8815,169.98,169.96,5.8819]
[1748458670925,9.65006549,169.99,169.96,5.8819]
[1748458671527,15.53116549,169.99,169.96,5.8819]
[1748458671727,9.65006549,169.99,169.96,5.8819]
[1748458671923,4.259e-05,169.99,169.95,0.04350021]
[1748458673018,4.259e-05,169.99,169.98,5.8813]
[1748458684538,4.259e-05,169.99,169.95,0.04350021]
[1748458684835,5.88134259,169.99,169.96,5.8818]
[1748458685034,4.259e-05,169.99,169.95,0.04350021]
[1748458686439,5.8819,169.97,169.95,0.04350021]
[1748458686827,4.259e-05,169.99,169.95,0.04350021]
[1748458687333,5.8815,169.98,169.95,5.92580021]
[1748458687938,4.259e-05,169.99,169.95,0.04350021]
[1748458688239,4.259e-05,169.99,169.97,5.8815]
[1748458689239,4.259e-05,169.99,169.95,5.92570021]
[1748458689435,5.8814,169.98,169.95,5.92570021]
[1748458689934,4.259e-05,169.99,169.95,0.04350021]
[1748458690128,5.882,169.96,169.95,0.04350021]
[1748458695846,4.259e-05,169.99,169.95,0.04350021]
[1748458696543,4.259e-05,169.99,169.97,5.8815]
[1748458697644,5.88104259,169.99,169.96,5.8819]
[1748458698245,5.88104259,169.99,169.95,0.04350021]
[1748458698650,5.88104259,169.99,169.96,5.882]
[1748458698847,4.259e-05,169.99,169.95,0.04350021]
[1748458699750,5.88104259,169.99,169.96,5.882]
[1748458699949,4.259e-05,169.99,169.95,0.04350021]
[1748458700751,4.259e-05,169.99,169.97,5.8815]
[1748458701253,5.88124259,169.99,169.97,5.8815]
[1748458701450,4.259e-05,169.99,169.95,0.04350021]
[1748458701651,5.8814,169.98,169.95,0.04350021]
[1748458701847,4.259e-05,169.99,169.95,0.04350021]
[1748458702952,5.8819,169.97,169.95,0.04350021]
[1748458703254,5.882,169.96,169.95,0.04350021]
[1748458703455,4.259e-05,169.99,169.95,0.04350021]
[1748458703755,5.8819,169.97,169.95,0.04350021]
[1748458704155,4.259e-05,169.99,169.95,0.04350021]
[1748458704547,5.882,169.96,169.95,0.04350021]
[1748458707250,5.882,169.96,169.88,1.9383]
[1748458707251,5.8828,169.94,169.89,30.84]
[1748458707450,11.5484229,169.99,169.89,30.84]
[1748458707656,11.5484229,169.99,169.91,5.8837]
[1748458707850,5.8829,169.94,169.91,5.8837]
[1748458708047,11.5484229,169.99,169.93,5.8829]
[1748458708253,0.03784299,169.98,169.94,0.04466857]
[1748458708547,0.03784299,169.98,169.94,5.92726857]
[1748458708755,0.03784299,169.98,169.94,0.04466857]
[1748458709064,5.8819,169.97,169.94,0.04466857]
[1748458709358,5.8819,169.97,169.94,5.92716857]
[1748458709959,5.882,169.96,169.94,5.92716857]
[1748458710955,5.8819,169.97,169.95,5.8824]
[1748458711763,5.91924299,169.98,169.96,5.882]
[1748458712463,5.8818,169.97,169.95,5.8822]
[1748458712859,0.03784299,169.98,169.94,0.04466857]
[1748458714859,5.91944299,169.98,169.95,5.8822]
[1748458715059,0.03784299,169.98,169.95,5.8822]
[1748458715961,5.8817,169.97,169.95,5.8822]
[1748458716161,0.03784299,169.98,169.94,5.92726857]
[1748458716360,0.03784299,169.98,169.94,0.04466857]
[1748458716557,5.8824,169.95,169.94,0.04466857]
[1748458719966,5.8822,169.96,169.94,0.04466857]
[1748458720262,0.03784299,169.98,169.94,0.04466857]
[1748458720668,5.8822,169.96,169.94,0.04466857]
[1748458721063,0.03784299,169.98,169.94,0.04466857]
[1748458721465,9.68786589,169.98,169.94,0.04466857]
[1748458721870,9.68786589,169.98,169.87,5.885]
[1748458722072,9.6500229,169.98,169.87,5.885]
[1748458722277,9.6500229,169.98,169.86,30.84]
[1748458722579,5.884,169.91,169.88,5.8845]
[1748458722976,5.92557199,169.91,169.88,0.04351301]
[1748458723179,0.04157199,169.91,169.89,5.8844]
[1748458724081,0.04157199,169.91,169.9,5.8841]
[1748458726179,30.84,169.98,169.94,5.8827]
[1748458726473,30.84,169.98,169.93,5.8828]
[1748458726682,34.7402,170.01,169.9,30.84]
[1748458726877,34.7402,170.01,169.9,34.6726]
[1748458726878,3.9002,170.01,169.9,34.6726]
[1748458727075,0.04048527,169.97,169.95,5.8821]
[1748458727567,0.04048527,169.97,169.94,0.04351993]
[1748458728173,5.92248527,169.97,169.94,0.04351993]
[1748458728981,5.8822,169.96,169.94,0.04351993]
[1748458730078,5.92228527,169.97,169.94,5.92621993]
[1748458730572,5.882,169.96,169.94,5.92621993]
[1748458730881,5.882,169.96,169.94,0.04351993]
[1748458731378,0.04048527,169.97,169.85,30.84]
[1748458731583,30.84,169.98,169.86,3.9453]
[1748458731881,30.84,169.98,169.9,5.8839]
[1748458732083,30.84,169.98,169.86,3.9453]
[1748458732278,30.84,169.98,169.9,0.04521539]
[1748458732279,5.8831,169.93,169.9,0.04521539]
[1748458732476,0.04285348,169.94,169.9,0.04521539]
[1748458733582,5.8836,169.92,169.9,0.04521539]
[1748458733978,0.04285348,169.94,169.9,0.04521539]
[1748458734283,5.92565348,169.94,169.9,0.04521539]
[1748458734484,0.04285348,169.94,169.9,0.04521539]
[1748458735185,5.92565348,169.94,169.91,5.8835]
[1748458737278,5.92565348,169.94,169.9,0.04521539]
[1748458737279,0.04285348,169.94,169.9,0.04521539]
[1748458738476,0.04285348,169.94,169.92,5.8832]
[1748458738677,0.04285348,169.94,169.9,0.04521539]
[1748458739077,0.04285348,169.94,169.93,5.8831]
[1748458740185,0.04285348,169.94,169.9,2.05501539]
[1748458740489,0.04285348,169.94,169.9,0.04521539]
[1748458740785,5.8833,169.93,169.9,5.92921539]
[1748458740985,5.8833,169.93,169.9,0.04521539]
[1748458741679,0.04285348,169.94,169.9,5.92921539]
[1748458741983,0.04285348,169.94,169.9,0.04521539]
[1748458743180,0.04285348,169.94,169.93,5.8831]
[1748458743885,0.04285348,169.94,169.92,5.8834]
[1748458745984,0.04285348,169.94,169.9,0.04521539]
[1748458746385,5.8831,169.93,169.9,0.04521539]
[1748458746580,0.04285348,169.94,169.9,0.04521539]
[1748458746985,5.8835,169.92,169.9,0.04521539]
[1748458747989,5.8832,169.93,169.9,5.92921539]
[1748458748377,0.04285348,169.94,169.9,5.92921539]
[1748458748589,0.04285348,169.94,169.93,5.8831]
[1748458755305,5.348e-05,169.94,169.93,5.8831]
[1748458755502,5.348e-05,169.94,169.93,7.9191]
[1748458755698,30.82,170.02,169.93,2.036]
[1748458756003,34.6351,170.05,169.93,3.9902]
[1748458756304,5.8802,170.02,169.93,3.9902]
[1748458756701,0.04262377,169.99,169.98,5.881]
[1748458771407,0.04262377,169.99,169.97,5.8815]
[1748458771614,0.04262377,169.99,169.96,30.86281952]
[1748458771907,0.04262377,169.99,169.97,5.8817]
[1748458773911,0.04262377,169.99,169.96,30.86281952]
[1748458773912,0.04262377,169.99,169.96,0.04281952]
[1748458774703,5.8817,169.97,169.96,0.04281952]
[1748458778504,30.86262377,169.99,169.9,30.82]
[1748458778703,1.9996,169.98,169.9,36.7038]
[1748458779210,5.8829,169.94,169.91,5.8837]
[1748458779416,5.92386977,169.94,169.91,5.9281395]
[1748458779711,0.04096977,169.94,169.91,0.0444395]
[1748458780416,5.8834,169.93,169.91,0.0444395]
[1748458780616,0.04096977,169.94,169.91,0.0444395]
[1748458781611,5.92376977,169.94,169.91,5.9281395]
[1748458782219,0.04096977,169.94,169.92,5.8834]
[1748458783412,5.92376977,169.94,169.92,5.8834]
[1748458784020,5.92376977,169.94,169.91,5.9280395]
[1748458784318,5.92376977,169.94,169.91,0.0444395]
[1748458786020,5.92376977,169.94,169.92,5.8834]
[1748458790619,0.04096977,169.94,169.93,5.8831]
[1748458791319,5.92376977,169.94,169.91,0.0444395]
[1748458792015,5.92376977,169.94,169.91,5.9279395]
[1748458792824,0.04096977,169.94,169.91,0.0444395]
[1748458793319,5.8832,169.93,169.91,5.9281395]
[1748458794618,5.92376977,169.94,169.92,5.8834]
[1748458794819,5.92376977,169.94,169.91,0.0444395]
[1748458795126,5.92376977,169.94,169.91,5.9281395]
[1748458795426,5.92376977,169.94,169.91,0.0444395]
[1748458795627,0.04096977,169.94,169.91,0.0444395]
[1748458796316,0.04096977,169.94,169.93,5.8831]
[1748458800428,0.04096977,169.94,169.91,0.0444395]
[1748458800630,2.08966977,169.94,169.82,1.9422]
[1748458800928,2.08966977,169.94,169.85,5.8857]
[1748458800929,9.6500229,169.93,169.85,5.8857]
[1748458801231,9.6500229,169.93,169.84,30.82]
[1748458801530,5.8849,169.88,169.84,36.706]
[1748458801822,0.04088896,169.9,169.88,5.8848]
[1748458802027,0.04088896,169.9,169.84,30.82]
[1748458802422,0.04088896,169.9,169.89,5.8844]
[1748458803423,30.82,169.98,169.89,9.6500229]
[1748458803625,30.82,170.0,169.89,9.6500229]
[1748458803822,30.82,170.0,169.92,5.8833]
[1748458804129,30.82,170.0,169.88,30.82]
[1748458804324,0.04408141,169.96,169.92,0.04331094]
[1748458804522,0.04408141,169.96,169.92,5.92651094]
[1748458804726,5.92638141,169.96,169.92,0.04331094]
[1748458804924,0.04408141,169.96,169.92,0.04331094]
[1748458806031,0.04408141,169.96,169.92,30.86331094]
[1748458807424,0.04408141,169.96,169.95,5.8824]